[Event "Titled Tuesday Blitz June 20 Late 2023"]
[White "Avila Pavas, Santiago"]
[Black "O`Gorman, Tom"]
[WhiteFideId "4437128"]
[BlackFideId "2508249"]
[WhiteElo "2449"]
[BlackElo "2299"]
[Result "0-1"]
[Round "8"]
[TimeControl "180+2"]
[Date "2023.06.20"]
[WhiteClock "0:02:27"]
[BlackClock "0:01:21"]
[Board "46"]

1. d4 {[%clk 0:03:00]}  Nf6 {[%clk 0:02:59]} 2. Nf3 {[%clk 0:03:00]}  e6 {[%clk 0:02:57]} 3. Bg5 {[%clk 0:03:01]}  Be7 {[%clk 0:02:56]} 4. Nbd2 {[%clk 0:03:01]}  d5 {[%clk 0:02:56]} 5. e3 {[%clk 0:03:02]}  O-O {[%clk 0:02:55]} 6. Bd3 {[%clk 0:03:02]}  c5 {[%clk 0:02:54]} 7. c3 {[%clk 0:03:03]}  Nc6 {[%clk 0:02:54]} 8. Qe2 {[%clk 0:03:03]}  b6 {[%clk 0:02:49]} 9. e4 {[%clk 0:03:03]}  dxe4 {[%clk 0:02:48]} 10. Nxe4 {[%clk 0:03:03]}  cxd4 {[%clk 0:02:47]} 11. O-O-O {[%clk 0:03:03]}  Bb7 {[%clk 0:02:46]} 12. h4 {[%clk 0:02:57]}  Rc8 {[%clk 0:02:42]} 13. Kb1 {[%clk 0:02:57]}  Nd5 {[%clk 0:02:31]} 14. Bxe7 {[%clk 0:02:38]}  Qxe7 {[%clk 0:02:32]} 15. Nfg5 {[%clk 0:02:38]}  Nf4 {[%clk 0:02:17]} 16. Qf3 {[%clk 0:02:37]}  Nxd3 {[%clk 0:02:16]} 17. Rxd3 {[%clk 0:02:37]}  f5 {[%clk 0:02:05]} 18. Nxh7 {[%clk 0:02:28]}  fxe4 {[%clk 0:01:40]} 19. Qxe4 {[%clk 0:02:29]}  Nb4 {[%clk 0:01:32]} 20. Qg6 {[%clk 0:02:27]}  Qf7 {[%clk 0:01:23]} 21. Qxf7+ {[%clk 0:02:27]}  Rxf7 {[%clk 0:01:23]} 22. cxb4 {[%clk 0:02:27]}  Be4 {[%clk 0:01:21]} 0-1


[Site "https://www.chess.com"]

[Event "Titled Tuesday Blitz June 20 Late 2023"]
[White "Goltsev, Dmitry"]
[Black "D`Arruda, Ricardo D."]
[WhiteFideId "24176710"]
[BlackFideId "100692"]
[WhiteElo "2356"]
[BlackElo "2540"]
[Result "1-0"]
[Round "8"]
[TimeControl "180+2"]
[Date "2023.06.20"]
[WhiteClock "0:00:06"]
[BlackClock "0:00:27"]
[Board "47"]

1. e4 {[%clk 0:03:00]}  c5 {[%clk 0:02:57]} 2. Nf3 {[%clk 0:03:00]}  Nc6 {[%clk 0:02:56]} 3. d4 {[%clk 0:03:01]}  cxd4 {[%clk 0:02:56]} 4. Nxd4 {[%clk 0:03:02]}  e5 {[%clk 0:02:56]} 5. Nf5 {[%clk 0:03:02]}  d5 {[%clk 0:02:55]} 6. Qxd5 {[%clk 0:02:59]}  Qxd5 {[%clk 0:02:54]} 7. exd5 {[%clk 0:03:00]}  Bxf5 {[%clk 0:02:55]} 8. dxc6 {[%clk 0:03:00]}  bxc6 {[%clk 0:02:55]} 9. Bd3 {[%clk 0:03:00]}  Bxd3 {[%clk 0:02:53]} 10. cxd3 {[%clk 0:03:01]}  Bc5 {[%clk 0:02:53]} 11. Be3 {[%clk 0:02:59]}  Bxe3 {[%clk 0:02:52]} 12. fxe3 {[%clk 0:02:59]}  Ne7 {[%clk 0:02:52]} 13. Nd2 {[%clk 0:02:58]}  O-O {[%clk 0:02:50]} 14. Nc4 {[%clk 0:02:58]}  f6 {[%clk 0:02:47]} 15. Ke2 {[%clk 0:02:58]}  Rab8 {[%clk 0:02:46]} 16. Rhc1 {[%clk 0:02:55]}  Rfd8 {[%clk 0:02:43]} 17. b3 {[%clk 0:02:55]}  Kf7 {[%clk 0:02:39]} 18. Na5 {[%clk 0:02:54]}  Rb6 {[%clk 0:02:38]} 19. Rc4 {[%clk 0:02:52]}  Ke6 {[%clk 0:02:38]} 20. Rac1 {[%clk 0:02:51]}  Kd7 {[%clk 0:02:38]} 21. e4 {[%clk 0:02:46]}  Rdb8 {[%clk 0:02:34]} 22. a3 {[%clk 0:02:41]}  Ra6 {[%clk 0:02:26]} 23. b4 {[%clk 0:02:38]}  Rab6 {[%clk 0:02:26]} 24. d4 {[%clk 0:02:34]}  exd4 {[%clk 0:02:24]} 25. Rxd4+ {[%clk 0:02:34]}  Ke6 {[%clk 0:02:20]} 26. Rcd1 {[%clk 0:02:32]}  c5 {[%clk 0:02:14]} 27. bxc5 {[%clk 0:02:29]}  Rb2+ {[%clk 0:02:14]} 28. Kf1 {[%clk 0:02:10]}  R8b5 {[%clk 0:02:13]} 29. Nc4 {[%clk 0:02:08]}  Ra2 {[%clk 0:02:04]} 30. Rd5 {[%clk 0:01:12]}  Rc2 {[%clk 0:01:55]} 31. a4 {[%clk 0:01:01]}  Rb4 {[%clk 0:01:55]} 32. Ne3 {[%clk 0:00:54]}  Ra2 {[%clk 0:01:47]} 33. c6 {[%clk 0:00:51]}  Rxe4 {[%clk 0:01:47]} 34. Rd6+ {[%clk 0:00:44]}  Kf7 {[%clk 0:01:46]} 35. R1d3 {[%clk 0:00:37]}  Ra1+ {[%clk 0:01:33]} 36. Kf2 {[%clk 0:00:37]}  Rc1 {[%clk 0:01:34]} 37. Rd7 {[%clk 0:00:33]}  Rxc6 {[%clk 0:01:23]} 38. Rxa7 {[%clk 0:00:18]}  Re5 {[%clk 0:01:01]} 39. a5 {[%clk 0:00:16]}  Kg6 {[%clk 0:00:53]} 40. g4 {[%clk 0:00:13]}  h5 {[%clk 0:00:48]} 41. h3 {[%clk 0:00:12]}  hxg4 {[%clk 0:00:47]} 42. hxg4 {[%clk 0:00:13]}  Re4 {[%clk 0:00:43]} 43. Rdd7 {[%clk 0:00:07]}  Rce6 {[%clk 0:00:43]} 44. Ng2 {[%clk 0:00:02]}  Kg5 {[%clk 0:00:43]} 45. Kf3 {[%clk 0:00:03]}  g6 {[%clk 0:00:38]} 46. Rac7 {[%clk 0:00:03]}  R6e5 {[%clk 0:00:35]} 47. a6 {[%clk 0:00:03]}  Nd5 {[%clk 0:00:34]} 48. Rxd5 {[%clk 0:00:02]}  Rxd5 {[%clk 0:00:31]} 49. Kxe4 {[%clk 0:00:03]}  Ra5 {[%clk 0:00:31]} 50. a7 {[%clk 0:00:03]}  Kxg4 {[%clk 0:00:32]} 51. Ne3+ {[%clk 0:00:03]}  Kg5 {[%clk 0:00:32]} 52. Nc4 {[%clk 0:00:04]}  Ra4 {[%clk 0:00:31]} 53. Kd5 {[%clk 0:00:04]}  f5 {[%clk 0:00:31]} 54. Nb6 {[%clk 0:00:04]}  Ra5+ {[%clk 0:00:30]} 55. Kd4 {[%clk 0:00:04]}  f4 {[%clk 0:00:31]} 56. a8=Q {[%clk 0:00:05]}  Rxa8 {[%clk 0:00:27]} 57. Nxa8 {[%clk 0:00:06]} 1-0


[Site "https://www.chess.com"]

[Event "Titled Tuesday Blitz June 20 Late 2023"]
[White "Ozates, Tuna"]
[Black "Cuenca Jimenez, Jose Fernando"]
[WhiteFideId "6354521"]
[BlackFideId "2255570"]
[WhiteElo "2151"]
[BlackElo "2418"]
[Result "1-0"]
[Round "8"]
[TimeControl "180+2"]
[Date "2023.06.20"]
[WhiteClock "0:00:05"]
[BlackClock "0:00:03"]
[Board "48"]

1. e4 {[%clk 0:03:00]}  d6 {[%clk 0:02:57]} 2. d4 {[%clk 0:03:00]}  Nf6 {[%clk 0:02:57]} 3. Nc3 {[%clk 0:03:01]}  e5 {[%clk 0:02:57]} 4. Nf3 {[%clk 0:03:01]}  Nbd7 {[%clk 0:02:57]} 5. Bc4 {[%clk 0:03:01]}  Be7 {[%clk 0:02:58]} 6. O-O {[%clk 0:03:01]}  O-O {[%clk 0:02:58]} 7. a4 {[%clk 0:03:01]}  c6 {[%clk 0:02:58]} 8. Ba2 {[%clk 0:03:01]}  b6 {[%clk 0:02:57]} 9. Qe2 {[%clk 0:02:49]}  a6 {[%clk 0:02:53]} 10. Rd1 {[%clk 0:02:49]}  Qc7 {[%clk 0:02:51]} 11. Nh4 {[%clk 0:02:45]}  exd4 {[%clk 0:02:39]} 12. Rxd4 {[%clk 0:02:39]}  Nc5 {[%clk 0:02:38]} 13. b4 {[%clk 0:02:36]}  Ne6 {[%clk 0:02:30]} 14. Rd1 {[%clk 0:02:35]}  g6 {[%clk 0:02:21]} 15. Bh6 {[%clk 0:02:34]}  Re8 {[%clk 0:02:21]} 16. b5 {[%clk 0:02:30]}  cxb5 {[%clk 0:02:03]} 17. Nd5 {[%clk 0:02:29]}  Nxd5 {[%clk 0:02:03]} 18. Bxd5 {[%clk 0:02:30]}  Rb8 {[%clk 0:01:49]} 19. Nf5 {[%clk 0:02:14]}  Bf6 {[%clk 0:01:36]} 20. Ra3 {[%clk 0:02:12]}  gxf5 {[%clk 0:01:24]} 21. Rg3+ {[%clk 0:02:10]}  Ng7 {[%clk 0:01:16]} 22. Qh5 {[%clk 0:01:40]}  Be6 {[%clk 0:01:16]} 23. exf5 {[%clk 0:01:08]}  Kh8 {[%clk 0:00:32]} 24. Bxg7+ {[%clk 0:01:00]}  Bxg7 {[%clk 0:00:31]} 25. f6 {[%clk 0:00:50]}  Bxd5 {[%clk 0:00:27]} 26. fxg7+ {[%clk 0:00:18]}  Kg8 {[%clk 0:00:26]} 27. Qxd5 {[%clk 0:00:18]}  Qxc2 {[%clk 0:00:24]} 28. h4 {[%clk 0:00:18]}  bxa4 {[%clk 0:00:22]} 29. Rf3 {[%clk 0:00:15]}  Re7 {[%clk 0:00:20]} 30. Qxd6 {[%clk 0:00:14]}  Rbe8 {[%clk 0:00:20]} 31. h5 {[%clk 0:00:11]}  b5 {[%clk 0:00:19]} 32. h6 {[%clk 0:00:11]}  Qc8 {[%clk 0:00:18]} 33. Rc3 {[%clk 0:00:07]}  Qb8 {[%clk 0:00:12]} 34. Qd4 {[%clk 0:00:04]}  Re6 {[%clk 0:00:11]} 35. g3 {[%clk 0:00:04]}  Rxh6 {[%clk 0:00:10]} 36. Rf3 {[%clk 0:00:04]}  Rhe6 {[%clk 0:00:10]} 37. Qd7 {[%clk 0:00:03]}  R6e7 {[%clk 0:00:08]} 38. Qd4 {[%clk 0:00:03]}  Qe5 {[%clk 0:00:08]} 39. Qh4 {[%clk 0:00:03]}  Qxg7 {[%clk 0:00:08]} 40. Kg2 {[%clk 0:00:03]}  Re6 {[%clk 0:00:08]} 41. Rd5 {[%clk 0:00:03]}  Rg6 {[%clk 0:00:08]} 42. Rdf5 {[%clk 0:00:03]}  Rf8 {[%clk 0:00:08]} 43. Qb4 {[%clk 0:00:03]}  Rg4 {[%clk 0:00:05]} 44. Qa5 {[%clk 0:00:03]}  Rg6 {[%clk 0:00:05]} 45. Qb4 {[%clk 0:00:03]}  h6 {[%clk 0:00:06]} 46. Qa5 {[%clk 0:00:03]}  Re6 {[%clk 0:00:05]} 47. Qb4 {[%clk 0:00:04]}  Qg6 {[%clk 0:00:05]} 48. Qa5 {[%clk 0:00:04]}  Qg7 {[%clk 0:00:04]} 49. Qb4 {[%clk 0:00:04]}  Rfe8 {[%clk 0:00:04]} 50. Qa5 {[%clk 0:00:05]}  R6e7 {[%clk 0:00:05]} 51. Qb4 {[%clk 0:00:05]}  Re6 {[%clk 0:00:05]} 52. Qa5 {[%clk 0:00:05]}  Qg6 {[%clk 0:00:04]} 53. Qb4 {[%clk 0:00:05]}  R8e7 {[%clk 0:00:05]} 54. Qa5 {[%clk 0:00:05]}  Kg7 {[%clk 0:00:06]} 55. Qb4 {[%clk 0:00:05]}  Re5 {[%clk 0:00:06]} 56. Qc3 {[%clk 0:00:06]}  f6 {[%clk 0:00:05]} 57. R5f4 {[%clk 0:00:06]}  R5e6 {[%clk 0:00:05]} 58. Qb4 {[%clk 0:00:06]}  Rf7 {[%clk 0:00:05]} 59. Rg4 {[%clk 0:00:06]}  Qg5 {[%clk 0:00:04]} 60. Rxg5+ {[%clk 0:00:05]}  hxg5 {[%clk 0:00:05]} 61. Qg4 {[%clk 0:00:05]}  Rfe7 {[%clk 0:00:04]} 62. Qd4 {[%clk 0:00:05]}  Rf7 {[%clk 0:00:04]} 63. Rf5 {[%clk 0:00:06]}  Kg6 {[%clk 0:00:03]} 64. Qd3 {[%clk 0:00:05]}  Kg7 {[%clk 0:00:04]} 65. Rd5 {[%clk 0:00:05]}  Rfe7 {[%clk 0:00:04]} 66. Rd8 {[%clk 0:00:05]}  Kf7 {[%clk 0:00:03]} 67. Qh7# {[%clk 0:00:05]} 1-0


[Site "https://www.chess.com"]

[Event "Titled Tuesday Blitz June 20 Late 2023"]
[White "Bolourchifard, Farzad"]
[Black "Badelka, Olga"]
[WhiteFideId "12510084"]
[BlackFideId "13509926"]
[WhiteElo "2317"]
[BlackElo "2375"]
[Result "1-0"]
[Round "8"]
[TimeControl "180+2"]
[Date "2023.06.20"]
[WhiteClock "0:01:15"]
[BlackClock "0:00:21"]
[Board "49"]

1. d4 {[%clk 0:03:00]}  Nf6 {[%clk 0:02:43]} 2. Nf3 {[%clk 0:02:56]}  e6 {[%clk 0:02:42]} 3. c4 {[%clk 0:02:56]}  d5 {[%clk 0:02:42]} 4. Nc3 {[%clk 0:02:55]}  Nbd7 {[%clk 0:02:42]} 5. Bg5 {[%clk 0:02:55]}  dxc4 {[%clk 0:02:34]} 6. e3 {[%clk 0:02:54]}  h6 {[%clk 0:02:34]} 7. Bh4 {[%clk 0:02:51]}  b5 {[%clk 0:02:19]} 8. Nxb5 {[%clk 0:02:41]}  Bb4+ {[%clk 0:02:18]} 9. Nc3 {[%clk 0:02:41]}  g5 {[%clk 0:02:18]} 10. Bg3 {[%clk 0:02:41]}  Ne4 {[%clk 0:02:08]} 11. Qc2 {[%clk 0:02:40]}  Bb7 {[%clk 0:01:43]} 12. Bxc4 {[%clk 0:02:38]}  g4 {[%clk 0:01:38]} 13. Nh4 {[%clk 0:02:23]}  Be7 {[%clk 0:01:28]} 14. Nxe4 {[%clk 0:02:20]}  Bxh4 {[%clk 0:01:27]} 15. O-O {[%clk 0:02:10]}  Be7 {[%clk 0:01:19]} 16. Rac1 {[%clk 0:02:08]}  Rc8 {[%clk 0:01:12]} 17. Nc5 {[%clk 0:02:01]}  Bxc5 {[%clk 0:01:01]} 18. dxc5 {[%clk 0:02:01]}  Bc6 {[%clk 0:01:00]} 19. b4 {[%clk 0:01:57]}  Rb8 {[%clk 0:00:57]} 20. Rfd1 {[%clk 0:01:29]}  Qc8 {[%clk 0:00:57]} 21. b5 {[%clk 0:01:15]}  Bxb5 {[%clk 0:00:50]} 22. Qb2 {[%clk 0:01:16]}  O-O {[%clk 0:00:21]} 23. Bxb5 {[%clk 0:01:15]} 1-0


[Site "https://www.chess.com"]

[Event "Titled Tuesday Blitz June 20 Late 2023"]
[White "Goryachkina, Aleksandra"]
[Black "Berezin, Viktor"]
[WhiteFideId "4147103"]
[BlackFideId "14107872"]
[WhiteElo "2471"]
[BlackElo "2310"]
[Result "1/2-1/2"]
[Round "8"]
[TimeControl "180+2"]
[Date "2023.06.20"]
[WhiteClock "0:00:09"]
[BlackClock "0:01:01"]
[Board "50"]

1. e4 {[%clk 0:03:00]}  g6 {[%clk 0:03:00]} 2. d4 {[%clk 0:02:59]}  Bg7 {[%clk 0:02:58]} 3. Nf3 {[%clk 0:02:56]}  d6 {[%clk 0:02:58]} 4. Bd3 {[%clk 0:02:56]}  Nf6 {[%clk 0:02:58]} 5. O-O {[%clk 0:02:54]}  c6 {[%clk 0:02:58]} 6. h3 {[%clk 0:02:52]}  O-O {[%clk 0:02:57]} 7. Re1 {[%clk 0:02:51]}  Nbd7 {[%clk 0:02:55]} 8. Nbd2 {[%clk 0:02:50]}  e5 {[%clk 0:02:55]} 9. c3 {[%clk 0:02:50]}  Qc7 {[%clk 0:02:54]} 10. Nf1 {[%clk 0:02:49]}  Re8 {[%clk 0:02:52]} 11. Ng3 {[%clk 0:02:48]}  Nf8 {[%clk 0:02:52]} 12. Be3 {[%clk 0:02:40]}  Ne6 {[%clk 0:02:51]} 13. Qc2 {[%clk 0:02:35]}  Nf4 {[%clk 0:02:47]} 14. Bf1 {[%clk 0:02:34]}  b6 {[%clk 0:02:18]} 15. Rad1 {[%clk 0:02:33]}  Bd7 {[%clk 0:02:14]} 16. a4 {[%clk 0:02:30]}  Rad8 {[%clk 0:02:14]} 17. b4 {[%clk 0:02:24]}  Bc8 {[%clk 0:02:11]} 18. c4 {[%clk 0:02:19]}  N6h5 {[%clk 0:02:04]} 19. Nxh5 {[%clk 0:02:04]}  Nxh5 {[%clk 0:02:05]} 20. dxe5 {[%clk 0:01:54]}  dxe5 {[%clk 0:02:03]} 21. c5 {[%clk 0:01:54]}  Nf4 {[%clk 0:01:59]} 22. cxb6 {[%clk 0:01:25]}  axb6 {[%clk 0:01:56]} 23. Rc1 {[%clk 0:01:24]}  Bb7 {[%clk 0:01:46]} 24. Qb3 {[%clk 0:01:12]}  Ne6 {[%clk 0:01:43]} 25. a5 {[%clk 0:00:46]}  Nd4 {[%clk 0:01:40]} 26. Bxd4 {[%clk 0:00:44]}  exd4 {[%clk 0:01:40]} 27. a6 {[%clk 0:00:38]}  Ba8 {[%clk 0:01:36]} 28. e5 {[%clk 0:00:36]}  c5 {[%clk 0:01:33]} 29. Bc4 {[%clk 0:00:31]}  Bxf3 {[%clk 0:01:23]} 30. Qxf3 {[%clk 0:00:31]}  Bxe5 {[%clk 0:01:18]} 31. bxc5 {[%clk 0:00:28]}  bxc5 {[%clk 0:01:18]} 32. g3 {[%clk 0:00:29]}  Kg7 {[%clk 0:01:16]} 33. Rb1 {[%clk 0:00:28]}  Rb8 {[%clk 0:01:12]} 34. Kg2 {[%clk 0:00:23]}  f6 {[%clk 0:01:10]} 35. Rb7 {[%clk 0:00:18]}  Rxb7 {[%clk 0:01:09]} 36. axb7 {[%clk 0:00:18]}  Rb8 {[%clk 0:01:07]} 37. Rb1 {[%clk 0:00:09]}  Qd6 {[%clk 0:01:01]} 1/2-1/2


[Site "https://www.chess.com"]

[Event "Titled Tuesday Blitz June 20 Late 2023"]
[White "Kochiev, Ivan"]
[Black "Rastbod, Ali"]
[WhiteFideId "2917890"]
[BlackFideId "12567477"]
[WhiteElo "2287"]
[BlackElo "2281"]
[Result "0-1"]
[Round "8"]
[TimeControl "180+2"]
[Date "2023.06.20"]
[WhiteClock "0:00:00"]
[BlackClock "0:00:16"]
[Board "51"]

1. e4 {[%clk 0:02:43]}  c6 {[%clk 0:02:53]} 2. d4 {[%clk 0:02:43]}  d5 {[%clk 0:02:53]} 3. Nc3 {[%clk 0:02:43]}  dxe4 {[%clk 0:02:54]} 4. Nxe4 {[%clk 0:02:44]}  Nf6 {[%clk 0:02:55]} 5. Nxf6+ {[%clk 0:02:45]}  exf6 {[%clk 0:02:55]} 6. c3 {[%clk 0:02:45]}  Bd6 {[%clk 0:02:56]} 7. Bd3 {[%clk 0:02:46]}  O-O {[%clk 0:02:57]} 8. Ne2 {[%clk 0:02:46]}  Re8 {[%clk 0:02:57]} 9. O-O {[%clk 0:02:47]}  Nd7 {[%clk 0:02:57]} 10. Ng3 {[%clk 0:02:47]}  g6 {[%clk 0:02:56]} 11. Ne4 {[%clk 0:02:46]}  Be7 {[%clk 0:02:53]} 12. Bf4 {[%clk 0:02:46]}  Nb6 {[%clk 0:02:46]} 13. Re1 {[%clk 0:02:39]}  f5 {[%clk 0:02:46]} 14. Ng3 {[%clk 0:02:36]}  Nd5 {[%clk 0:02:45]} 15. Bd2 {[%clk 0:02:35]}  Be6 {[%clk 0:02:40]} 16. a3 {[%clk 0:02:30]}  b5 {[%clk 0:02:28]} 17. Qf3 {[%clk 0:02:27]}  Bd6 {[%clk 0:02:10]} 18. Re2 {[%clk 0:02:26]}  Bd7 {[%clk 0:02:08]} 19. Rae1 {[%clk 0:02:22]}  Rxe2 {[%clk 0:02:06]} 20. Rxe2 {[%clk 0:02:23]}  Qh4 {[%clk 0:02:06]} 21. h3 {[%clk 0:02:11]}  a6 {[%clk 0:02:01]} 22. Bc1 {[%clk 0:01:51]}  Re8 {[%clk 0:01:53]} 23. Rxe8+ {[%clk 0:01:51]}  Bxe8 {[%clk 0:01:54]} 24. Qe2 {[%clk 0:01:50]}  Bd7 {[%clk 0:01:52]} 25. Nf1 {[%clk 0:01:47]}  Nf4 {[%clk 0:01:41]} 26. Bxf4 {[%clk 0:01:41]}  Qxf4 {[%clk 0:01:42]} 27. g3 {[%clk 0:01:33]}  Qc1 {[%clk 0:01:41]} 28. Kg2 {[%clk 0:01:34]}  Be6 {[%clk 0:01:39]} 29. Ne3 {[%clk 0:01:27]}  f4 {[%clk 0:01:36]} 30. Ng4 {[%clk 0:01:24]}  fxg3 {[%clk 0:01:05]} 31. Nf6+ {[%clk 0:01:06]}  Kf8 {[%clk 0:00:55]} 32. fxg3 {[%clk 0:00:58]}  h5 {[%clk 0:00:43]} 33. Ne4 {[%clk 0:00:36]}  Bd5 {[%clk 0:00:37]} 34. Kf2 {[%clk 0:00:34]}  Be7 {[%clk 0:00:34]} 35. h4 {[%clk 0:00:26]}  Qh1 {[%clk 0:00:33]} 36. Ke3 {[%clk 0:00:17]}  f5 {[%clk 0:00:28]} 37. Ng5 {[%clk 0:00:05]}  Bd6 {[%clk 0:00:19]} 38. Qf2 {[%clk 0:00:00]}  Qc1+ {[%clk 0:00:16]} 0-1


[Site "https://www.chess.com"]

[Event "Titled Tuesday Blitz June 20 Late 2023"]
[White "Karamsetty, Jeevan"]
[Black "Sun, Rick"]
[WhiteFideId "2025337"]
[BlackFideId "30909481"]
[WhiteElo "2131"]
[BlackElo "2169"]
[Result "1-0"]
[Round "8"]
[TimeControl "180+2"]
[Date "2023.06.20"]
[WhiteClock "0:00:19"]
[BlackClock "0:00:02"]
[Board "52"]

1. e4 {[%clk 0:03:00]}  d6 {[%clk 0:03:00]} 2. d4 {[%clk 0:02:58]}  Nf6 {[%clk 0:03:00]} 3. Nd2 {[%clk 0:02:58]}  e5 {[%clk 0:02:58]} 4. d5 {[%clk 0:02:58]}  g6 {[%clk 0:02:54]} 5. Ngf3 {[%clk 0:02:57]}  Bg7 {[%clk 0:02:55]} 6. c4 {[%clk 0:02:57]}  O-O {[%clk 0:02:55]} 7. Bd3 {[%clk 0:02:57]}  a5 {[%clk 0:02:52]} 8. O-O {[%clk 0:02:53]}  Nbd7 {[%clk 0:02:52]} 9. a3 {[%clk 0:02:50]}  Nh5 {[%clk 0:02:46]} 10. Bc2 {[%clk 0:02:46]}  Nf4 {[%clk 0:02:42]} 11. Rb1 {[%clk 0:02:44]}  f5 {[%clk 0:02:36]} 12. exf5 {[%clk 0:02:45]}  gxf5 {[%clk 0:02:37]} 13. b4 {[%clk 0:02:41]}  axb4 {[%clk 0:02:36]} 14. axb4 {[%clk 0:02:42]}  e4 {[%clk 0:02:29]} 15. Ne1 {[%clk 0:02:40]}  Ne5 {[%clk 0:02:09]} 16. Nb3 {[%clk 0:02:33]}  Qg5 {[%clk 0:01:27]} 17. Kh1 {[%clk 0:02:21]}  Ng4 {[%clk 0:01:10]} 18. f3 {[%clk 0:02:08]}  Nxh2 {[%clk 0:00:28]} 19. Kxh2 {[%clk 0:02:04]}  Be5 {[%clk 0:00:27]} 20. g3 {[%clk 0:01:46]}  Qh5+ {[%clk 0:00:11]} 21. Kg1 {[%clk 0:01:43]}  Nh3+ {[%clk 0:00:11]} 22. Kg2 {[%clk 0:01:39]}  f4 {[%clk 0:00:03]} 23. Bxe4 {[%clk 0:01:24]}  Rf6 {[%clk 0:00:03]} 24. Rh1 {[%clk 0:01:00]}  Ra2+ {[%clk 0:00:03]} 25. Nc2 {[%clk 0:00:48]}  Rh6 {[%clk 0:00:03]} 26. g4 {[%clk 0:00:43]}  Qh4 {[%clk 0:00:03]} 27. Qe1 {[%clk 0:00:38]}  Bxg4 {[%clk 0:00:02]} 28. Qxh4 {[%clk 0:00:37]}  Rxh4 {[%clk 0:00:02]} 29. fxg4 {[%clk 0:00:37]}  f3+ {[%clk 0:00:03]} 30. Kf1 {[%clk 0:00:32]}  Rxg4 {[%clk 0:00:01]} 31. Bxh7+ {[%clk 0:00:29]}  Kxh7 {[%clk 0:00:01]} 32. Rxh3+ {[%clk 0:00:29]}  Kg7 {[%clk 0:00:01]} 33. Ne3 {[%clk 0:00:18]}  Rg3 {[%clk 0:00:02]} 34. Rxg3+ {[%clk 0:00:18]}  Bxg3 {[%clk 0:00:02]} 35. Bb2+ {[%clk 0:00:17]}  Kg6 {[%clk 0:00:02]} 36. Nd2 {[%clk 0:00:16]}  Bf4 {[%clk 0:00:02]} 37. Kf2 {[%clk 0:00:16]}  Be5 {[%clk 0:00:02]} 38. Nxf3 {[%clk 0:00:16]}  Bxb2 {[%clk 0:00:02]} 39. Kg3 {[%clk 0:00:17]}  Be5+ {[%clk 0:00:02]} 40. Nxe5+ {[%clk 0:00:17]}  dxe5 {[%clk 0:00:03]} 41. Kf3 {[%clk 0:00:18]}  Kf6 {[%clk 0:00:03]} 42. Ke4 {[%clk 0:00:18]}  Rf2 {[%clk 0:00:02]} 43. Ng4+ {[%clk 0:00:18]}  Kg5 {[%clk 0:00:02]} 44. Nxf2 {[%clk 0:00:19]} 1-0


[Site "https://www.chess.com"]

[Event "Titled Tuesday Blitz June 20 Late 2023"]
[White "Petukhov, Dmitry"]
[Black "Ganiev, Roman"]
[WhiteFideId "4142748"]
[BlackFideId "4131452"]
[WhiteElo "2311"]
[BlackElo "2663"]
[Result "0-1"]
[Round "8"]
[TimeControl "180+2"]
[Date "2023.06.20"]
[WhiteClock "0:00:04"]
[BlackClock "0:00:06"]
[Board "53"]

1. e4 {[%clk 0:03:00]}  c5 {[%clk 0:02:59]} 2. c3 {[%clk 0:03:00]}  Nf6 {[%clk 0:02:59]} 3. e5 {[%clk 0:03:00]}  Nd5 {[%clk 0:02:59]} 4. d4 {[%clk 0:03:00]}  cxd4 {[%clk 0:03:00]} 5. Nf3 {[%clk 0:03:00]}  Nc6 {[%clk 0:03:00]} 6. Bc4 {[%clk 0:02:59]}  e6 {[%clk 0:03:00]} 7. Bxd5 {[%clk 0:02:38]}  exd5 {[%clk 0:02:58]} 8. cxd4 {[%clk 0:02:38]}  d6 {[%clk 0:02:57]} 9. h3 {[%clk 0:02:36]}  Be7 {[%clk 0:02:55]} 10. O-O {[%clk 0:02:35]}  O-O {[%clk 0:02:55]} 11. Nc3 {[%clk 0:02:34]}  Be6 {[%clk 0:02:54]} 12. Bf4 {[%clk 0:02:28]}  dxe5 {[%clk 0:02:53]} 13. dxe5 {[%clk 0:02:26]}  h6 {[%clk 0:02:40]} 14. Nd4 {[%clk 0:02:25]}  Nxd4 {[%clk 0:02:38]} 15. Qxd4 {[%clk 0:02:26]}  Qd7 {[%clk 0:02:39]} 16. Rfd1 {[%clk 0:02:18]}  Rfd8 {[%clk 0:02:38]} 17. Rac1 {[%clk 0:02:11]}  b6 {[%clk 0:02:35]} 18. Qd3 {[%clk 0:01:59]}  Rac8 {[%clk 0:02:26]} 19. Ne2 {[%clk 0:01:51]}  Bf5 {[%clk 0:02:07]} 20. Qg3 {[%clk 0:01:49]}  Rxc1 {[%clk 0:02:03]} 21. Rxc1 {[%clk 0:01:50]}  Kh7 {[%clk 0:01:49]} 22. e6 {[%clk 0:01:32]}  Qxe6 {[%clk 0:01:42]} 23. Nd4 {[%clk 0:01:31]}  Qg6 {[%clk 0:01:36]} 24. Rc7 {[%clk 0:01:23]}  Bc5 {[%clk 0:01:02]} 25. Nxf5 {[%clk 0:01:23]}  Qxf5 {[%clk 0:01:00]} 26. Be5 {[%clk 0:01:16]}  Bxf2+ {[%clk 0:00:44]} 27. Qxf2 {[%clk 0:01:16]}  Qxe5 {[%clk 0:00:44]} 28. Qxf7 {[%clk 0:01:15]}  d4 {[%clk 0:00:44]} 29. Re7 {[%clk 0:00:53]}  Qg5 {[%clk 0:00:43]} 30. h4 {[%clk 0:00:50]}  Qg4 {[%clk 0:00:26]} 31. Qc4 {[%clk 0:00:30]}  Qxh4 {[%clk 0:00:20]} 32. Qd3+ {[%clk 0:00:26]}  Kh8 {[%clk 0:00:20]} 33. Re4 {[%clk 0:00:23]}  Qf6 {[%clk 0:00:18]} 34. b4 {[%clk 0:00:19]}  a5 {[%clk 0:00:17]} 35. b5 {[%clk 0:00:19]}  Qg6 {[%clk 0:00:12]} 36. a4 {[%clk 0:00:13]}  Kh7 {[%clk 0:00:12]} 37. Kf2 {[%clk 0:00:07]}  Rd5 {[%clk 0:00:11]} 38. Ke2 {[%clk 0:00:07]}  Qxg2+ {[%clk 0:00:11]} 39. Kd1 {[%clk 0:00:07]}  Qg6 {[%clk 0:00:10]} 40. Kd2 {[%clk 0:00:06]}  Rg5 {[%clk 0:00:10]} 41. Rxd4 {[%clk 0:00:06]}  Rg2+ {[%clk 0:00:09]} 42. Kc1 {[%clk 0:00:05]}  Rg1+ {[%clk 0:00:09]} 43. Kc2 {[%clk 0:00:05]}  Rg2+ {[%clk 0:00:09]} 44. Kc1 {[%clk 0:00:05]}  Qxd3 {[%clk 0:00:09]} 45. Rxd3 {[%clk 0:00:06]}  h5 {[%clk 0:00:09]} 46. Rd5 {[%clk 0:00:06]}  Kh6 {[%clk 0:00:08]} 47. Rd6+ {[%clk 0:00:07]}  Rg6 {[%clk 0:00:09]} 48. Rd8 {[%clk 0:00:08]}  h4 {[%clk 0:00:09]} 49. Kd2 {[%clk 0:00:08]}  Kg5 {[%clk 0:00:09]} 50. Ke2 {[%clk 0:00:08]}  Kg4 {[%clk 0:00:07]} 51. Kf2 {[%clk 0:00:08]}  Kh3 {[%clk 0:00:07]} 52. Rh8 {[%clk 0:00:05]}  Rf6+ {[%clk 0:00:06]} 53. Kg1 {[%clk 0:00:05]}  g5 {[%clk 0:00:07]} 54. Rg8 {[%clk 0:00:04]}  g4 {[%clk 0:00:07]} 55. Rc8 {[%clk 0:00:04]}  Kg3 {[%clk 0:00:06]} 56. Rc6 {[%clk 0:00:04]}  Rf3 {[%clk 0:00:04]} 57. Rxb6 {[%clk 0:00:04]}  h3 {[%clk 0:00:05]} 58. Rc6 {[%clk 0:00:03]}  h2+ {[%clk 0:00:05]} 59. Kh1 {[%clk 0:00:04]}  Rf1# {[%clk 0:00:06]} 0-1


[Site "https://www.chess.com"]